{"text_format":"3","workbook":"xlsx","n_sheets":2,"sheets":["匯率轉換表","MSN MoneyCentral 匯率"],"not_rendered":{"defined_names":9},"read":"whole","date_system":"1900"}

{"sheet":"匯率轉換表","index":0,"n_rows":49,"n_cols":7,"rows_kept":49,"merged":[[0,0,0,3]]}
["匯率轉換表"]
["金額","貨幣別","轉換後金額","貨幣別",null,"幣別","與美金相比"]
[200,"台 幣",{"$f":"IF(A3=\"\",\"\",A3*VLOOKUP(D3,money,2,0)/VLOOKUP(B3,money,2,0))","v":{"$error":"#DIV/0!"}},"日 圓",null,"澳 元",{"$f":"'MSN MoneyCentral 匯率'!C12","v":0}]
[null,null,"",null,null,"英 磅",{"$f":"'MSN MoneyCentral 匯率'!C16","v":0}]
[null,null,"",null,null,"人民幣",{"$f":"'MSN MoneyCentral 匯率'!C19","v":0}]
[null,null,"",null,null,"歐 元",{"$f":"'MSN MoneyCentral 匯率'!C25","v":0}]
[null,null,"",null,null,"港幣",{"$f":"'MSN MoneyCentral 匯率'!C26","v":0}]
[null,null,"",null,null,"日 圓",{"$f":"'MSN MoneyCentral 匯率'!C30","v":0}]
[null,null,"",null,null,"新加坡幣",{"$f":"'MSN MoneyCentral 匯率'!C43","v":0}]
[null,null,"",null,null,"台 幣",{"$f":"'MSN MoneyCentral 匯率'!C47","v":0}]
[null,null,"",null,null,"韓幣",{"$f":"'MSN MoneyCentral 匯率'!C33","v":0}]
[null,null,"",null,null,"泰 銖",{"$f":"'MSN MoneyCentral 匯率'!C48","v":0}]
[null,null,"",null,null,"美金",{"$f":"'MSN MoneyCentral 匯率'!C51","v":0}]
[null,null,""]
[null,null,""]
[null,null,""]
[null,null,""]
[null,null,""]
[null,null,""]
[null,null,""]
[null,null,""]
[null,null,""]
[null,null,""]
[null,null,""]
[null,null,""]
[null,null,""]
[null,null,""]
[null,null,""]
[null,null,""]
[null,null,""]
[null,null,""]
[null,null,""]
[null,null,""]
[null,null,""]
[null,null,""]
[null,null,""]
[null,null,""]
[null,null,""]
[null,null,""]
[null,null,""]
[null,null,""]
[null,null,""]
[null,null,""]
[null,null,""]
[null,null,""]
[null,null,""]
[null,null,""]
[null,null,""]
[null,null,""]

{"sheet":"MSN MoneyCentral 匯率","index":1,"n_rows":4,"n_cols":3,"rows_kept":4,"hidden":true,"merged":[[0,0,0,4],[1,2,3,4],[2,0,2,1],[6,0,6,4],[7,0,7,2],[53,0,53,4],[55,2,55,4],[56,2,56,4],[57,0,57,4],[58,0,58,4],[59,0,59,4],[60,0,60,4],[61,0,61,4],[62,0,62,4],[63,0,63,4],[64,0,64,4],[65,0,65,4]]}
["匯率換算與匯價表"]
["United States Dollar",1,"請利用 A5 或 A7 的下拉式清單變更貨幣。若要變更金額，請更新 B5 中的數目。"]
["等於"]
["United States Dollar",{"$f":"B2*VLOOKUP(A2,Currency_List_Lookup,2,0)/VLOOKUP(A4,Currency_List_Lookup,2,0)","v":{"$error":"#N/A"}}]